[Event "32nd NATO Chess Championship"]
[Site "Tartu, Estonia"]
[Date "2022.06.30"]
[Round "5.11"]
[White "Hernandez, Albert"]
[Black "Jauk, Wilhelm"]
[Result "0-1"]
[TimeControl "90 min + 30 sec increment from move one"]
[WhiteFideId "2075407"]
[BlackFideId "24681067"]
[WhiteElo "2012"]
[BlackElo "2156"]

1. d4 {[%clk 01:30:55]} {[%emt 00:00:04]} d5 {[%clk 01:30:54]} {[%emt
00:00:06]} 2. c4 {[%clk 01:31:20]} {[%emt 00:00:06]} e6 {[%clk 01:30:59]}
{[%emt 00:00:24]} 3. Nc3 {[%clk 01:31:43]} {[%emt 00:00:07]} Nf6 {[%clk
01:31:24]} {[%emt 00:00:05]} 4. Bg5 {[%clk 01:32:02]} {[%emt 00:00:10]} Be7
{[%clk 01:31:39]} {[%emt 00:00:16]} 5. Nf3 {[%clk 01:32:22]} {[%emt 00:00:10]}
O-O {[%clk 01:31:18]} {[%emt 00:00:52]} 6. g3 {[%clk 01:32:45]} {[%emt
00:00:08]} b6 {[%clk 01:26:55]} {[%emt 00:04:53]} 7. cxd5 {[%clk 01:32:55]}
{[%emt 00:00:19]} exd5 {[%clk 01:19:55]} {[%emt 00:07:30]} 8. Bg2 {[%clk
01:33:14]} {[%emt 00:00:11]} Bb7 {[%clk 01:19:26]} {[%emt 00:01:00]} 9. O-O
{[%clk 01:33:33]} {[%emt 00:00:10]} Nbd7 {[%clk 01:17:46]} {[%emt 00:02:10]} 10.
Rc1 {[%clk 01:31:36]} {[%emt 00:02:27]} c5 {[%clk 01:10:55]} {[%emt 00:07:22]}
11. Ne5 {[%clk 01:23:47]} {[%emt 00:08:19]} Nxe5 {[%clk 00:44:18]} {[%emt
00:27:06]} 12. dxe5 {[%clk 01:23:54]} {[%emt 00:00:23]} Ne4 {[%clk 00:44:39]}
{[%emt 00:00:09]} 13. Bxe7 {[%clk 01:20:40]} {[%emt 00:03:45]} Qxe7 {[%clk
00:45:05]} {[%emt 00:00:03]} 14. Nxd5 {[%clk 01:20:49]} {[%emt 00:00:21]} Qxe5
{[%clk 00:45:14]} {[%emt 00:00:21]} 15. Nc3 {[%clk 01:15:12]} {[%emt 00:06:07]}
Nxc3 {[%clk 00:44:47]} {[%emt 00:00:57]} 16. Rxc3 {[%clk 01:15:30]} {[%emt
00:00:12]} Bxg2 {[%clk 00:45:05]} {[%emt 00:00:12]} 17. Kxg2 {[%clk 01:15:53]}
{[%emt 00:00:07]} Rad8 {[%clk 00:44:27]} {[%emt 00:01:06]} 18. Qa4 {[%clk
01:12:07]} {[%emt 00:04:17]} Qxe2 {[%clk 00:39:18]} {[%emt 00:05:40]} 19. Qxa7
{[%clk 01:12:09]} {[%emt 00:00:29]} Qxb2 {[%clk 00:38:16]} {[%emt 00:01:30]} 20.
Rb3 {[%clk 01:12:03]} {[%emt 00:00:37]} Qd2 {[%clk 00:37:31]} {[%emt 00:01:14]}
21. Rxb6 {[%clk 01:09:18]} {[%emt 00:03:17]} Qd5+ {[%clk 00:36:11]} {[%emt
00:01:49]} 22. Kg1 {[%clk 01:09:09]} {[%emt 00:00:38]} Ra8 {[%clk 00:36:10]}
{[%emt 00:00:31]} 23. Qb7 {[%clk 01:06:19]} {[%emt 00:03:21]} Qxa2 {[%clk
00:30:49]} {[%emt 00:05:51]} 24. Rc6 {[%clk 01:04:43]} {[%emt 00:02:05]} Qa3
{[%clk 00:27:50]} {[%emt 00:03:28]} 25. Qe7 {[%clk 00:59:57]} {[%emt 00:05:17]}
Rac8 {[%clk 00:25:45]} {[%emt 00:02:34]} 26. Rd1 {[%clk 00:47:04]} {[%emt
00:13:24]} Qf3 {[%clk 00:19:28]} {[%emt 00:06:46]} 27. Rcd6 {[%clk 00:43:52]}
{[%emt 00:03:43]} h6 {[%clk 00:19:37]} {[%emt 00:00:21]} 28. R6d3 {[%clk
00:44:07]} {[%emt 00:00:15]} Qg4 {[%clk 00:19:26]} {[%emt 00:00:39]} 29. Rc1
{[%clk 00:43:53]} {[%emt 00:00:46]} Rfe8 {[%clk 00:18:47]} {[%emt 00:01:08]} 30.
Qd6 {[%clk 00:40:24]} {[%emt 00:04:00]} c4 {[%clk 00:16:57]} {[%emt 00:02:20]}
31. Rdc3 {[%clk 00:39:31]} {[%emt 00:01:23]} Re6 {[%clk 00:15:01]} {[%emt
00:02:25]} 32. Qd5 {[%clk 00:39:26]} {[%emt 00:00:36]} Rec6 {[%clk 00:15:13]}
{[%emt 00:00:17]} 33. f3 {[%clk 00:37:29]} {[%emt 00:02:29]} Qe6 {[%clk
00:14:07]} {[%emt 00:01:35]} 34. Qxe6 {[%clk 00:37:49]} {[%emt 00:00:09]} fxe6
{[%clk 00:14:34]} {[%emt 00:00:04]} 35. Kf2 {[%clk 00:38:08]} {[%emt 00:00:11]}
Kf7 {[%clk 00:14:47]} {[%emt 00:00:17]} 36. Ke3 {[%clk 00:38:30]} {[%emt
00:00:09]} e5 {[%clk 00:13:58]} {[%emt 00:01:19]} 37. f4 {[%clk 00:36:48]}
{[%emt 00:02:11]} Ke6 {[%clk 00:14:04]} {[%emt 00:00:24]} 38. Ke4 {[%clk
00:35:58]} {[%emt 00:01:21]} exf4 {[%clk 00:14:01]} {[%emt 00:00:33]} 39. gxf4
{[%clk 00:36:18]} {[%emt 00:00:09]} g6 {[%clk 00:13:31]} {[%emt 00:01:00]} 40.
Rg1 {[%clk 00:36:25]} {[%emt 00:00:23]} Kf6 {[%clk 00:13:37]} {[%emt 00:00:20]}
41. Kd5 {[%clk 00:24:25]} {[%emt 00:12:34]} Kf5 {[%clk 00:13:34]} {[%emt
00:00:32]} 42. Rg2 {[%clk 00:23:59]} {[%emt 00:00:56]} R6c7 {[%clk 00:11:07]}
{[%emt 00:02:58]} 43. Kd4 {[%clk 00:21:07]} {[%emt 00:03:23]} Rd7+ {[%clk
00:11:08]} {[%emt 00:00:27]} 44. Ke3 {[%clk 00:21:29]} {[%emt 00:00:10]} Re8+
{[%clk 00:11:21]} {[%emt 00:00:15]} 45. Kf3 {[%clk 00:17:10]} {[%emt 00:04:50]}
Rd4 {[%clk 00:11:39]} {[%emt 00:00:11]} 46. Re3 {[%clk 00:13:38]} {[%emt
00:04:04]} Rxf4+ {[%clk 00:11:25]} {[%emt 00:00:44]} 47. Ke2 {[%clk 00:14:01]}
{[%emt 00:00:06]} Rxe3+ {[%clk 00:11:00]} {[%emt 00:00:56]} 48. Kxe3 {[%clk
00:14:24]} {[%emt 00:00:06]} g5 {[%clk 00:11:04]} {[%emt 00:00:26]} 49. Rd2
{[%clk 00:12:45]} {[%emt 00:02:10]} Kg4 {[%clk 00:10:36]} {[%emt 00:00:55]} 50.
Rd6 {[%clk 00:12:36]} {[%emt 00:00:41]} h5 {[%clk 00:10:58]} {[%emt 00:00:09]}
51. Rd5 {[%clk 00:12:20]} {[%emt 00:00:46]} Rf3+ {[%clk 00:08:48]} {[%emt
00:02:38]} 52. Ke2 {[%clk 00:11:10]} {[%emt 00:01:42]} c3 {[%clk 00:08:38]}
{[%emt 00:00:40]} 53. Rc5 {[%clk 00:11:11]} {[%emt 00:00:28]} Rh3 {[%clk
00:08:46]} {[%emt 00:00:22]} 54. Kf1 {[%clk 00:10:55]} {[%emt 00:00:45]} Kf4
{[%clk 00:08:04]} {[%emt 00:01:12]} 55. Rc4+ {[%clk 00:05:00]} {[%emt
00:06:27]} Ke5 {[%clk 00:08:17]} {[%emt 00:00:13]} 56. Rc5+ {[%clk 00:04:40]}
{[%emt 00:00:55]} Kd4 {[%clk 00:08:01]} {[%emt 00:00:44]} 57. Rxg5 {[%clk
00:04:29]} {[%emt 00:00:41]} c2 {[%clk 00:08:04]} {[%emt 00:00:28]} 58. Kg2
{[%clk 00:04:50]} {[%emt 00:00:09]} Rc3 {[%emt 00:00:53]} 0-1

[Event "32nd NATO Chess Championship"]
[Site "Tartu, Estonia"]
[Date "2022.06.30"]
[Round "5.12"]
[White "Graczyk, Damian"]
[Black "Jacob, Tobias"]
[Result "1-0"]
[TimeControl "90 min + 30 sec increment from move one"]
[WhiteFideId "1170716"]
[BlackFideId "12903221"]
[WhiteElo "2151"]
[BlackElo "2013"]

1. d4 {[%clk 01:30:57]} {[%emt 00:00:01]} Nf6 {[%clk 01:29:45]} {[%emt
00:01:16]} 2. Nf3 {[%clk 01:31:05]} {[%emt 00:00:22]} g6 {[%clk 01:29:58]}
{[%emt 00:00:19]} 3. c4 {[%clk 01:31:29]} {[%emt 00:00:06]} Bg7 {[%clk
01:30:23]} {[%emt 00:00:05]} 4. Nc3 {[%clk 01:31:55]} {[%emt 00:00:04]} O-O
{[%clk 01:30:41]} {[%emt 00:00:12]} 5. g3 {[%clk 01:32:20]} {[%emt 00:00:05]}
d6 {[%clk 01:30:50]} {[%emt 00:00:21]} 6. Bg2 {[%clk 01:32:44]} {[%emt
00:00:05]} Nc6 {[%clk 01:30:58]} {[%emt 00:00:23]} 7. d5 {[%clk 01:32:11]}
{[%emt 00:01:03]} Na5 {[%clk 01:31:12]} {[%emt 00:00:16]} 8. Nd2 {[%clk
01:32:39]} {[%emt 00:00:02]} c5 {[%clk 01:30:51]} {[%emt 00:00:51]} 9. Qc2
{[%clk 01:31:06]} {[%emt 00:02:03]} a6 {[%clk 01:30:23]} {[%emt 00:00:59]} 10.
O-O {[%clk 01:29:40]} {[%emt 00:01:54]} Rb8 {[%clk 01:30:04]} {[%emt 00:00:50]}
11. b3 {[%clk 01:28:53]} {[%emt 00:01:17]} b5 {[%clk 01:29:07]} {[%emt
00:01:27]} 12. Bb2 {[%clk 01:29:21]} {[%emt 00:00:02]} Nd7 {[%clk 01:20:43]}
{[%emt 00:08:54]} 13. Rab1 {[%clk 01:26:53]} {[%emt 00:02:58]} bxc4 {[%clk
01:00:16]} {[%emt 00:20:57]} 14. bxc4 {[%clk 01:27:09]} {[%emt 00:00:14]} Ne5
{[%clk 00:58:30]} {[%emt 00:02:16]} 15. Nd1 {[%clk 01:23:09]} {[%emt 00:04:30]}
f6 {[%clk 00:49:45]} {[%emt 00:09:15]} 16. h3 {[%clk 01:16:20]} {[%emt
00:07:19]} Bh6 {[%clk 00:45:49]} {[%emt 00:04:26]} 17. f4 {[%clk 01:15:34]}
{[%emt 00:01:16]} Nf7 {[%clk 00:45:59]} {[%emt 00:00:20]} 18. e4 {[%clk
01:14:56]} {[%emt 00:01:08]} e5 {[%clk 00:43:30]} {[%emt 00:02:59]} 19. dxe6
{[%clk 01:13:41]} {[%emt 00:01:45]} Bxe6 {[%clk 00:43:46]} {[%emt 00:00:13]} 20.
Ne3 {[%clk 01:13:46]} {[%emt 00:00:24]} Nc6 {[%clk 00:39:28]} {[%emt 00:04:49]}
21. Nd5 {[%clk 01:08:53]} {[%emt 00:05:23]} Bg7 {[%clk 00:34:57]} {[%emt
00:05:01]} 22. Bc3 {[%clk 01:04:00]} {[%emt 00:05:23]} Rxb1 {[%clk 00:24:35]}
{[%emt 00:10:52]} 23. Rxb1 {[%clk 01:03:54]} {[%emt 00:00:36]} Nd4 {[%clk
00:22:47]} {[%emt 00:02:18]} 24. Bxd4 {[%clk 01:02:05]} {[%emt 00:02:19]} cxd4
{[%clk 00:23:15]} {[%emt 00:00:02]} 25. Qa4 {[%clk 01:02:17]} {[%emt 00:00:18]}
Bxd5 {[%clk 00:18:36]} {[%emt 00:05:09]} 26. cxd5 {[%clk 01:01:35]} {[%emt
00:01:12]} f5 {[%clk 00:14:37]} {[%emt 00:04:30]} 27. Qxa6 {[%clk 00:48:40]}
{[%emt 00:13:24]} g5 {[%clk 00:14:40]} {[%emt 00:00:28]} 28. Qd3 {[%clk
00:41:02]} {[%emt 00:08:08]} gxf4 {[%clk 00:14:47]} {[%emt 00:00:23]} 29. gxf4
{[%clk 00:41:24]} {[%emt 00:00:07]} Nh6 {[%clk 00:12:43]} {[%emt 00:02:34]} 30.
e5 {[%clk 00:35:05]} {[%emt 00:06:49]} dxe5 {[%clk 00:11:11]} {[%emt 00:02:03]}
31. fxe5 {[%clk 00:35:33]} {[%emt 00:00:01]} Bxe5 {[%clk 00:11:14]} {[%emt
00:00:27]} 32. Nf3 {[%clk 00:35:59]} {[%emt 00:00:04]} Bd6 {[%clk 00:06:49]}
{[%emt 00:04:56]} 33. Nxd4 {[%clk 00:34:38]} {[%emt 00:01:51]} Qa5 {[%clk
00:05:02]} {[%emt 00:02:16]} 34. Ne6 {[%clk 00:30:49]} {[%emt 00:04:18]} Rc8
{[%clk 00:05:02]} {[%emt 00:00:32]} 35. Qd4 {[%clk 00:20:36]} {[%emt 00:10:42]}
Qc3 {[%clk 00:05:09]} {[%emt 00:00:23]} 36. Qxc3 {[%clk 00:19:45]} {[%emt
00:01:22]} Rxc3 {[%clk 00:05:38]} 37. Rb6 {[%clk 00:19:23]} {[%emt 00:00:52]}
Bg3 {[%clk 00:05:21]} {[%emt 00:00:47]} 38. Rc6 {[%clk 00:16:15]} {[%emt
00:03:38]} Rd3 {[%clk 00:05:02]} {[%emt 00:00:46]} 39. Kf1 {[%clk 00:15:25]}
{[%emt 00:01:21]} Rd2 {[%clk 00:05:03]} {[%emt 00:00:30]} 40. a4 {[%clk
00:12:25]} {[%emt 00:03:31]} f4 {[%clk 00:04:52]} {[%emt 00:00:41]} 41. Be4
{[%clk 00:12:19]} {[%emt 00:00:35]} f3 {[%clk 00:04:44]} {[%emt 00:00:39]} 42.
Rc8+ {[%clk 00:09:46]} {[%emt 00:03:03]} Kf7 {[%clk 00:05:04]} {[%emt
00:00:09]} 43. Rf8+ {[%clk 00:09:57]} {[%emt 00:00:18]} Ke7 {[%clk 00:05:19]}
{[%emt 00:00:17]} 44. Rxf3 {[%clk 00:10:19]} {[%emt 00:00:07]} Be5 {[%clk
00:04:45]} {[%emt 00:01:04]} 45. Rb3 {[%clk 00:08:47]} {[%emt 00:02:02]} Nf7
{[%clk 00:04:39]} {[%emt 00:00:37]} 46. Rb7+ {[%clk 00:08:30]} {[%emt
00:00:46]} Kf6 {[%clk 00:04:47]} {[%emt 00:00:22]} 47. Nf8 {[%clk 00:08:34]}
{[%emt 00:00:26]} Nd6 {[%clk 00:03:53]} {[%emt 00:01:25]} 48. Nxh7# {[%clk
00:08:36]} {[%emt 00:00:28]} 1-0

[Event "32nd NATO Chess Championship"]
[Site "Tartu, Estonia"]
[Date "2022.06.30"]
[Round "5.13"]
[White "Choina, Michal"]
[Black "Mouroutis, Konstantinos"]
[Result "0-1"]
[TimeControl "90 min + 30 sec increment from move one"]
[WhiteFideId "1166565"]
[BlackFideId "4204689"]
[WhiteElo "1927"]
[BlackElo "2133"]

1. e4 {[%clk 01:30:54]} {[%emt 00:00:04]} c6 {[%clk 01:30:33]} {[%emt
00:00:27]} 2. d4 {[%clk 01:30:27]} {[%emt 00:00:57]} d5 {[%clk 01:30:53]}
{[%emt 00:00:10]} 3. Nc3 {[%clk 01:30:28]} {[%emt 00:00:31]} dxe4 {[%clk
01:31:16]} {[%emt 00:00:06]} 4. Nxe4 {[%clk 01:30:39]} {[%emt 00:00:19]} Bf5
{[%clk 01:31:29]} {[%emt 00:00:16]} 5. Ng3 {[%clk 01:30:35]} {[%emt 00:00:35]}
Bg6 {[%clk 01:31:48]} {[%emt 00:00:12]} 6. h4 {[%clk 01:29:06]} {[%emt
00:01:58]} h5 {[%clk 01:31:45]} {[%emt 00:00:33]} 7. Nf3 {[%clk 01:28:47]}
{[%emt 00:00:49]} Nd7 {[%clk 01:31:45]} {[%emt 00:00:30]} 8. Bd3 {[%clk
01:27:28]} {[%emt 00:01:50]} Bxd3 {[%clk 01:31:53]} {[%emt 00:00:20]} 9. Qxd3
{[%clk 01:27:52]} {[%emt 00:00:08]} e6 {[%clk 01:31:47]} {[%emt 00:00:35]} 10.
Ne4 {[%clk 01:17:25]} {[%emt 00:10:57]} Ngf6 {[%clk 01:30:53]} {[%emt
00:01:24]} 11. Nfg5 {[%clk 01:06:42]} {[%emt 00:11:13]} Nxe4 {[%clk 01:29:16]}
{[%emt 00:02:06]} 12. Nxe4 {[%clk 01:06:31]} {[%emt 00:00:43]} Nf6 {[%clk
01:20:14]} {[%emt 00:09:30]} 13. Nxf6+ {[%clk 01:03:53]} {[%emt 00:03:10]} gxf6
{[%clk 01:20:41]} {[%emt 00:00:02]} 14. Qe4 {[%clk 00:50:50]} {[%emt 00:13:33]}
Rg8 {[%clk 01:16:02]} {[%emt 00:05:09]} 15. Be3 {[%clk 00:45:49]} {[%emt
00:05:32]} Rg4 {[%clk 01:12:39]} {[%emt 00:03:53]} 16. Qf3 {[%clk 00:45:34]}
{[%emt 00:00:44]} f5 {[%clk 01:12:44]} {[%emt 00:00:25]} 17. g3 {[%clk
00:44:10]} {[%emt 00:01:54]} Qa5+ {[%clk 01:12:36]} {[%emt 00:00:38]} 18. c3
{[%clk 00:42:41]} {[%emt 00:01:59]} Be7 {[%clk 01:07:50]} {[%emt 00:05:16]} 19.
a4 {[%clk 00:37:50]} {[%emt 00:05:21]} O-O-O {[%clk 01:01:34]} {[%emt
00:06:45]} 20. b4 {[%clk 00:36:11]} {[%emt 00:02:11]} Qc7 {[%clk 01:01:16]}
{[%emt 00:00:46]} 21. Bf4 {[%clk 00:30:08]} {[%emt 00:06:34]} Bd6 {[%clk
01:01:15]} {[%emt 00:00:30]} 22. Bxd6 {[%clk 00:23:40]} {[%emt 00:06:59]} Qxd6
{[%clk 01:01:27]} {[%emt 00:00:18]} 23. Rb1 {[%clk 00:17:37]} {[%emt 00:06:34]}
f4 {[%clk 00:52:18]} {[%emt 00:09:39]} 24. gxf4 {[%clk 00:17:34]} {[%emt
00:00:32]} f5 {[%clk 00:50:57]} {[%emt 00:01:51]} 25. Rb2 {[%clk 00:05:07]}
{[%emt 00:12:58]} Rdg8 {[%clk 00:48:32]} {[%emt 00:02:54]} 26. Re2 {[%clk
00:02:55]} {[%emt 00:02:42]} a5 {[%clk 00:46:34]} {[%emt 00:02:28]} 27. Qe3
{[%clk 00:02:05]} {[%emt 00:01:20]} Kd7 {[%clk 00:44:09]} {[%emt 00:02:55]} 28.
Rb2 {[%clk 00:01:25]} {[%emt 00:01:11]} axb4 {[%clk 00:40:49]} {[%emt
00:03:49]} 29. Rxb4 {[%clk 00:01:33]} {[%emt 00:00:23]} Rxf4 {[%clk 00:37:37]}
{[%emt 00:03:41]} 30. f3 {[%clk 00:01:04]} {[%emt 00:00:59]} Rg3 {[%clk
00:36:45]} {[%emt 00:01:22]} 31. Rf1 {[%clk 00:01:33]} Kc7 {[%clk 00:33:32]}
{[%emt 00:03:45]} 32. a5 {[%clk 00:01:19]} {[%emt 00:00:44]} Re4 {[%clk
00:28:23]} {[%emt 00:05:37]} 33. Qxe4 {[%clk 00:00:51]} {[%emt 00:00:59]} fxe4
{[%clk 00:28:44]} {[%emt 00:00:09]} 34. fxe4 {[%clk 00:01:20]} {[%emt
00:00:02]} Rg7 {[%clk 00:28:31]} {[%emt 00:00:42]} 0-1

[Event "32nd NATO Chess Championship"]
[Site "Tartu, Estonia"]
[Date "2022.06.30"]
[Round "5.14"]
[White "Dekker, Ard"]
[Black "Onley, David E"]
[Result "1/2-1/2"]
[TimeControl "90 min + 30 sec increment from move one"]
[WhiteFideId "1014528"]
[BlackFideId "419311"]
[WhiteElo "1932"]
[BlackElo "2083"]

1. d4 {[%clk 01:30:55]} {[%emt 00:00:03]} Nf6 {[%clk 01:30:52]} {[%emt
00:00:09]} 2. Nf3 {[%clk 01:31:16]} {[%emt 00:00:09]} g6 {[%clk 01:31:12]}
{[%emt 00:00:09]} 3. g3 {[%clk 01:30:55]} {[%emt 00:00:52]} Bg7 {[%clk
01:31:34]} {[%emt 00:00:08]} 4. Bg2 {[%clk 01:31:16]} {[%emt 00:00:08]} O-O
{[%clk 01:31:55]} {[%emt 00:00:10]} 5. O-O {[%clk 01:31:30]} {[%emt 00:00:18]}
d6 {[%clk 01:32:16]} {[%emt 00:00:10]} 6. c4 {[%clk 01:31:13]} {[%emt
00:00:46]} Nbd7 {[%clk 01:32:31]} {[%emt 00:00:15]} 7. Nc3 {[%clk 01:31:09]}
{[%emt 00:00:35]} e5 {[%clk 01:32:41]} {[%emt 00:00:19]} 8. e4 {[%clk
01:28:52]} {[%emt 00:02:47]} Re8 {[%clk 01:32:08]} {[%emt 00:01:03]} 9. h3
{[%clk 01:27:34]} {[%emt 00:01:48]} a5 {[%clk 01:31:43]} {[%emt 00:00:55]} 10.
Be3 {[%clk 01:27:07]} {[%emt 00:00:55]} a4 {[%clk 01:25:18]} {[%emt 00:06:57]}
11. Qc2 {[%clk 01:23:12]} {[%emt 00:04:25]} c6 {[%clk 01:24:14]} {[%emt
00:01:34]} 12. Rfe1 {[%clk 01:19:19]} {[%emt 00:04:22]} Qa5 {[%clk 01:23:21]}
{[%emt 00:01:24]} 13. Rad1 {[%clk 01:17:54]} {[%emt 00:01:55]} h6 {[%clk
01:22:11]} {[%emt 00:01:40]} 14. Kh2 {[%clk 01:16:59]} {[%emt 00:01:24]} Kh7
{[%clk 01:18:51]} {[%emt 00:03:50]} 15. Rd2 {[%clk 01:05:20]} {[%emt 00:12:11]}
exd4 {[%clk 01:15:10]} {[%emt 00:04:11]} 16. Nxd4 {[%clk 01:04:25]} {[%emt
00:01:25]} Nc5 {[%clk 01:13:10]} {[%emt 00:02:29]} 17. a3 {[%clk 00:56:11]}
{[%emt 00:08:44]} Nfd7 {[%clk 01:03:48]} {[%emt 00:09:51]} 18. f4 {[%clk
00:49:15]} {[%emt 00:07:27]} Nf6 {[%clk 00:53:57]} {[%emt 00:10:21]} 19. Bf2
{[%clk 00:45:19]} {[%emt 00:04:26]} 1/2-1/2

[Event "32nd NATO Chess Championship"]
[Site "Tartu, Estonia"]
[Date "2022.06.30"]
[Round "5.15"]
[White "Keough, Robert"]
[Black "Nilsson, Erik"]
[Result "0-1"]
[TimeControl "90 min + 30 sec increment from move one"]
[WhiteFideId "410667"]
[BlackFideId "1409000"]
[WhiteElo "2074"]
[BlackElo "2002"]

1. e4 {[%clk 01:30:51]} {[%emt 00:00:09]} e6 {[%clk 01:30:54]} {[%emt
00:00:07]} 2. d4 {[%clk 01:31:16]} {[%emt 00:00:05]} d5 {[%clk 01:31:18]}
{[%emt 00:00:05]} 3. Nc3 {[%clk 01:31:41]} {[%emt 00:00:05]} Bb4 {[%clk
01:30:25]} {[%emt 00:01:24]} 4. e5 {[%clk 01:31:23]} {[%emt 00:00:50]} c5
{[%clk 01:30:22]} {[%emt 00:00:33]} 5. Qg4 {[%clk 01:31:01]} {[%emt 00:00:52]}
Ne7 {[%clk 01:29:29]} {[%emt 00:01:22]} 6. dxc5 {[%clk 01:31:09]} {[%emt
00:00:22]} Nbc6 {[%clk 01:28:42]} {[%emt 00:01:17]} 7. Bb5 {[%clk 01:31:01]}
{[%emt 00:00:39]} Bxc3+ {[%clk 01:27:25]} {[%emt 00:01:47]} 8. bxc3 {[%clk
01:31:17]} {[%emt 00:00:14]} Qa5 {[%clk 01:27:23]} {[%emt 00:00:32]} 9. Qb4
{[%clk 01:23:33]} {[%emt 00:08:13]} Qc7 {[%clk 01:25:43]} {[%emt 00:02:10]} 10.
f4 {[%clk 01:19:40]} {[%emt 00:04:24]} O-O {[%clk 01:25:24]} {[%emt 00:00:49]}
11. Qb2 {[%clk 01:18:12]} {[%emt 00:01:58]} Bd7 {[%clk 01:22:49]} {[%emt
00:03:05]} 12. Nf3 {[%clk 01:16:22]} {[%emt 00:02:19]} Rfc8 {[%clk 01:22:34]}
{[%emt 00:00:45]} 13. Be3 {[%clk 01:12:49]} {[%emt 00:04:04]} Na5 {[%clk
01:20:09]} {[%emt 00:02:55]} 14. Bd3 {[%clk 01:10:57]} {[%emt 00:02:21]} Nc4
{[%clk 01:17:18]} {[%emt 00:03:21]} 15. Bxc4 {[%clk 01:10:58]} {[%emt
00:00:30]} dxc4 {[%clk 01:17:40]} {[%emt 00:00:07]} 16. O-O {[%clk 01:11:22]}
{[%emt 00:00:07]} Nd5 {[%clk 01:17:06]} {[%emt 00:01:04]} 17. Bd4 {[%clk
01:06:48]} {[%emt 00:05:03]} Nxf4 {[%clk 01:15:36]} {[%emt 00:02:00]} 18. Ng5
{[%clk 01:06:58]} {[%emt 00:00:21]} Ne2+ {[%clk 01:13:29]} {[%emt 00:02:37]} 19.
Kh1 {[%clk 01:07:19]} {[%emt 00:00:08]} Nxd4 {[%clk 01:13:23]} {[%emt
00:00:37]} 20. cxd4 {[%clk 01:07:42]} {[%emt 00:00:06]} Be8 {[%clk 01:12:05]}
{[%emt 00:01:49]} 21. Qc3 {[%clk 01:02:58]} {[%emt 00:05:14]} b6 {[%clk
01:11:52]} {[%emt 00:00:42]} 22. Qh3 {[%clk 01:03:21]} {[%emt 00:00:07]} h6
{[%clk 01:11:57]} {[%emt 00:00:25]} 23. Ne4 {[%clk 01:03:40]} {[%emt 00:00:11]}
bxc5 {[%clk 01:11:56]} {[%emt 00:00:31]} 24. Nxc5 {[%clk 01:02:35]} {[%emt
00:01:36]} Bc6 {[%clk 01:09:56]} {[%emt 00:02:30]} 25. Rf4 {[%clk 01:02:24]}
{[%emt 00:00:39]} Bd5 {[%clk 01:08:30]} {[%emt 00:01:57]} 26. Raf1 {[%clk
01:02:34]} {[%emt 00:00:19]} Rf8 {[%clk 01:08:57]} {[%emt 00:00:04]} 27. Rg4
{[%clk 01:01:43]} {[%emt 00:01:19]} Kh7 {[%clk 01:08:26]} {[%emt 00:01:03]} 28.
Qe3 {[%clk 01:00:12]} {[%emt 00:02:01]} Qe7 {[%clk 01:02:26]} {[%emt 00:06:30]}
29. Rgf4 {[%clk 00:46:49]} {[%emt 00:13:53]} Rab8 {[%clk 01:00:59]} {[%emt
00:01:57]} 30. Qf2 {[%clk 00:46:51]} {[%emt 00:00:28]} f5 {[%clk 01:00:03]}
{[%emt 00:01:27]} 31. exf6 {[%clk 00:44:55]} {[%emt 00:02:26]} Rxf6 {[%clk
01:00:12]} {[%emt 00:00:20]} 32. Rxf6 {[%clk 00:41:29]} {[%emt 00:03:57]} Qxf6
{[%clk 00:57:27]} {[%emt 00:03:14]} 33. Qg1 {[%clk 00:32:47]} {[%emt 00:09:12]}
Qg5 {[%clk 00:53:47]} {[%emt 00:04:09]} 34. Nd7 {[%clk 00:17:58]} {[%emt
00:15:19]} Rb2 {[%clk 00:52:03]} {[%emt 00:02:15]} 35. Rf2 {[%clk 00:17:26]}
{[%emt 00:01:01]} Rxa2 {[%clk 00:45:30]} {[%emt 00:07:05]} 36. Qb1 {[%clk
00:13:14]} {[%emt 00:04:42]} c3 {[%clk 00:43:06]} {[%emt 00:02:54]} 37. h3
{[%clk 00:10:09]} {[%emt 00:03:35]} Qe3 {[%clk 00:35:23]} {[%emt 00:08:12]} 38.
Rf7 {[%clk 00:03:11]} {[%emt 00:07:28]} Qxh3+ {[%clk 00:35:26]} {[%emt
00:00:27]} 0-1